[Event "Titled Tuesday Blitz July 4 Late 2023"]
[White "Goncalves, Davi Sulzbacher"]
[Black "Talibov, Shiroghlan"]
[WhiteFideId "2154510"]
[BlackFideId "13429078"]
[WhiteElo "2442"]
[BlackElo "2798"]
[Result "0-1"]
[Round "1"]
[TimeControl "180+2"]
[Date "2023.07.04"]
[WhiteClock "0:00:00"]
[BlackClock "0:01:03"]
[Board "54"]

1. Nf3 {[%clk 0:03:00]}  b6 {[%clk 0:02:47]} 2. e4 {[%clk 0:03:00]}  c5 {[%clk 0:02:41]} 3. d4 {[%clk 0:02:59]}  cxd4 {[%clk 0:02:42]} 4. Nxd4 {[%clk 0:03:00]}  Bb7 {[%clk 0:02:42]} 5. Nc3 {[%clk 0:02:55]}  e6 {[%clk 0:02:42]} 6. Ndb5 {[%clk 0:02:28]}  d6 {[%clk 0:02:41]} 7. Bf4 {[%clk 0:02:27]}  e5 {[%clk 0:02:40]} 8. Be3 {[%clk 0:02:12]}  a6 {[%clk 0:02:39]} 9. Na3 {[%clk 0:02:11]}  b5 {[%clk 0:02:39]} 10. Nd5 {[%clk 0:02:06]}  Nf6 {[%clk 0:02:38]} 11. Bb6 {[%clk 0:02:05]}  Qc8 {[%clk 0:02:26]} 12. Nc7+ {[%clk 0:02:04]}  Kd7 {[%clk 0:02:25]} 13. c4 {[%clk 0:01:48]}  b4 {[%clk 0:02:03]} 14. Nc2 {[%clk 0:01:43]}  Bxe4 {[%clk 0:02:00]} 15. Nxb4 {[%clk 0:01:34]}  Nc6 {[%clk 0:01:57]} 16. Nxc6 {[%clk 0:01:04]}  Bxc6 {[%clk 0:01:58]} 17. Nxa8 {[%clk 0:01:04]}  Qxa8 {[%clk 0:01:53]} 18. Be2 {[%clk 0:00:56]}  Bxg2 {[%clk 0:01:45]} 19. Rg1 {[%clk 0:00:56]}  Bc6 {[%clk 0:01:43]} 20. a4 {[%clk 0:00:37]}  Rg8 {[%clk 0:01:38]} 21. a5 {[%clk 0:00:36]}  Be7 {[%clk 0:01:35]} 22. b4 {[%clk 0:00:35]}  g5 {[%clk 0:01:26]} 23. b5 {[%clk 0:00:33]}  Bb7 {[%clk 0:01:26]} 24. c5 {[%clk 0:00:30]}  axb5 {[%clk 0:01:20]} 25. a6 {[%clk 0:00:09]}  Bd5 {[%clk 0:01:19]} 26. Bxb5+ {[%clk 0:00:07]}  Ke6 {[%clk 0:01:20]} 27. c6 {[%clk 0:00:05]}  Qb8 {[%clk 0:01:05]} 28. c7 {[%clk 0:00:00]}  Qxb6 {[%clk 0:01:03]} 0-1


[Site "https://www.chess.com"]

[Event "Titled Tuesday Blitz July 4 Late 2023"]
[White "Sukandar, Irine Kharisma"]
[Black "Hambleton, Aman"]
[WhiteFideId "7101937"]
[BlackFideId "2606577"]
[WhiteElo "2440"]
[BlackElo "2794"]
[Result "0-1"]
[Round "1"]
[TimeControl "180+2"]
[Date "2023.07.04"]
[WhiteClock "0:00:00"]
[BlackClock "0:00:03"]
[Board "56"]

1. e4 {[%clk 0:02:59]}  c5 {[%clk 0:02:58]} 2. Nf3 {[%clk 0:02:58]}  a6 {[%clk 0:02:58]} 3. c3 {[%clk 0:02:57]}  Nf6 {[%clk 0:02:56]} 4. e5 {[%clk 0:02:56]}  Nd5 {[%clk 0:02:57]} 5. d4 {[%clk 0:02:56]}  cxd4 {[%clk 0:02:57]} 6. cxd4 {[%clk 0:02:56]}  d6 {[%clk 0:02:56]} 7. Nc3 {[%clk 0:02:53]}  Nxc3 {[%clk 0:02:48]} 8. bxc3 {[%clk 0:02:52]}  dxe5 {[%clk 0:02:27]} 9. Nxe5 {[%clk 0:02:51]}  Nd7 {[%clk 0:02:26]} 10. Qa4 {[%clk 0:02:13]}  e6 {[%clk 0:02:15]} 11. Be2 {[%clk 0:02:04]}  Bd6 {[%clk 0:02:06]} 12. Bf4 {[%clk 0:01:57]}  Qc7 {[%clk 0:01:59]} 13. O-O {[%clk 0:01:47]}  O-O {[%clk 0:01:56]} 14. Nxd7 {[%clk 0:01:23]}  Bxd7 {[%clk 0:01:35]} 15. Bxd6 {[%clk 0:01:22]}  Qxd6 {[%clk 0:01:36]} 16. Qb3 {[%clk 0:01:16]}  b5 {[%clk 0:01:14]} 17. Rfd1 {[%clk 0:01:05]}  Bc6 {[%clk 0:01:07]} 18. c4 {[%clk 0:00:52]}  bxc4 {[%clk 0:01:05]} 19. Bxc4 {[%clk 0:00:52]}  Rfd8 {[%clk 0:00:55]} 20. Rac1 {[%clk 0:00:41]}  g6 {[%clk 0:00:40]} 21. h3 {[%clk 0:00:35]}  Bd5 {[%clk 0:00:26]} 22. Bxd5 {[%clk 0:00:21]}  Qxd5 {[%clk 0:00:27]} 23. Qxd5 {[%clk 0:00:21]}  Rxd5 {[%clk 0:00:27]} 24. Rc5 {[%clk 0:00:20]}  Rad8 {[%clk 0:00:25]} 25. Rxd5 {[%clk 0:00:18]}  Rxd5 {[%clk 0:00:26]} 26. Kf1 {[%clk 0:00:19]}  e5 {[%clk 0:00:12]} 27. Ke2 {[%clk 0:00:11]}  exd4 {[%clk 0:00:13]} 28. Rd2 {[%clk 0:00:09]}  Kf8 {[%clk 0:00:04]} 29. Kd3 {[%clk 0:00:09]}  Ke7 {[%clk 0:00:03]} 30. Kc4 {[%clk 0:00:08]}  Ra5 {[%clk 0:00:02]} 31. Kxd4 {[%clk 0:00:07]}  Ke6 {[%clk 0:00:02]} 32. Ke4 {[%clk 0:00:05]}  Ra4+ {[%clk 0:00:02]} 33. Ke3 {[%clk 0:00:05]}  Ra3+ {[%clk 0:00:02]} 34. Ke4 {[%clk 0:00:05]}  Ra4+ {[%clk 0:00:01]} 35. Ke3 {[%clk 0:00:05]}  Ke5 {[%clk 0:00:02]} 36. f3 {[%clk 0:00:04]}  Ra3+ {[%clk 0:00:02]} 37. Ke2 {[%clk 0:00:04]}  g5 {[%clk 0:00:02]} 38. Kf2 {[%clk 0:00:04]}  h5 {[%clk 0:00:02]} 39. Ke2 {[%clk 0:00:03]}  h4 {[%clk 0:00:02]} 40. Kf2 {[%clk 0:00:03]}  a5 {[%clk 0:00:02]} 41. Ke2 {[%clk 0:00:03]}  f6 {[%clk 0:00:02]} 42. Kf1 {[%clk 0:00:03]}  Kf4 {[%clk 0:00:02]} 43. Kf2 {[%clk 0:00:02]}  Ra4 {[%clk 0:00:03]} 44. Ke2 {[%clk 0:00:03]}  Kg3 {[%clk 0:00:03]} 45. Kf1 {[%clk 0:00:00]}  Rc4 {[%clk 0:00:03]} 0-1


[Site "https://www.chess.com"]

[Event "Titled Tuesday Blitz July 4 Late 2023"]
[White "Srdanovic, Jovana"]
[Black "Tristan, Leonardo"]
[WhiteFideId "954810"]
[BlackFideId "113816"]
[WhiteElo "2437"]
[BlackElo "2784"]
[Result "0-1"]
[Round "1"]
[TimeControl "180+2"]
[Date "2023.07.04"]
[WhiteClock "0:00:12"]
[BlackClock "0:00:25"]
[Board "58"]

1. d4 {[%clk 0:03:00]}  d5 {[%clk 0:02:58]} 2. c4 {[%clk 0:03:00]}  e6 {[%clk 0:02:58]} 3. Nc3 {[%clk 0:02:59]}  a6 {[%clk 0:02:58]} 4. cxd5 {[%clk 0:02:59]}  exd5 {[%clk 0:02:59]} 5. Bf4 {[%clk 0:02:58]}  Nf6 {[%clk 0:02:59]} 6. e3 {[%clk 0:02:58]}  c5 {[%clk 0:02:59]} 7. Nf3 {[%clk 0:02:54]}  c4 {[%clk 0:02:59]} 8. Be2 {[%clk 0:02:52]}  b5 {[%clk 0:02:59]} 9. O-O {[%clk 0:02:51]}  Bb7 {[%clk 0:02:59]} 10. Ne5 {[%clk 0:02:50]}  Be7 {[%clk 0:02:59]} 11. Bg3 {[%clk 0:02:49]}  O-O {[%clk 0:02:58]} 12. f4 {[%clk 0:02:49]}  Nbd7 {[%clk 0:02:59]} 13. Bf3 {[%clk 0:02:48]}  Nb6 {[%clk 0:02:41]} 14. a3 {[%clk 0:02:46]}  Re8 {[%clk 0:02:39]} 15. Bh4 {[%clk 0:02:44]}  Ne4 {[%clk 0:02:37]} 16. Bxe7 {[%clk 0:02:41]}  Qxe7 {[%clk 0:02:37]} 17. Bxe4 {[%clk 0:02:21]}  dxe4 {[%clk 0:02:29]} 18. Ng4 {[%clk 0:02:18]}  Rad8 {[%clk 0:02:20]} 19. Qc2 {[%clk 0:02:14]}  Qd7 {[%clk 0:02:06]} 20. f5 {[%clk 0:02:14]}  f6 {[%clk 0:02:05]} 21. Rf4 {[%clk 0:02:09]}  Re7 {[%clk 0:01:52]} 22. Nf2 {[%clk 0:02:02]}  Rde8 {[%clk 0:01:53]} 23. Re1 {[%clk 0:01:59]}  Nd5 {[%clk 0:01:49]} 24. Nxd5 {[%clk 0:01:23]}  Bxd5 {[%clk 0:01:50]} 25. Nd1 {[%clk 0:01:20]}  a5 {[%clk 0:01:46]} 26. Nc3 {[%clk 0:01:20]}  b4 {[%clk 0:01:46]} 27. Nxd5 {[%clk 0:01:19]}  Qxd5 {[%clk 0:01:46]} 28. Rc1 {[%clk 0:01:16]}  Rc7 {[%clk 0:01:46]} 29. axb4 {[%clk 0:01:14]}  axb4 {[%clk 0:01:46]} 30. Qa4 {[%clk 0:01:14]}  Rb8 {[%clk 0:01:46]} 31. Qc2 {[%clk 0:01:11]}  c3 {[%clk 0:01:36]} 32. b3 {[%clk 0:01:11]}  Re7 {[%clk 0:01:17]} 33. Ra1 {[%clk 0:01:09]}  Ra8 {[%clk 0:01:16]} 34. Ra2 {[%clk 0:01:00]}  Rxa2 {[%clk 0:00:59]} 35. Qxa2 {[%clk 0:01:00]}  Qc6 {[%clk 0:01:00]} 36. Rf2 {[%clk 0:00:58]}  Rc7 {[%clk 0:00:58]} 37. Rc2 {[%clk 0:00:57]}  Rc8 {[%clk 0:00:56]} 38. Qa5 {[%clk 0:00:54]}  Qb7 {[%clk 0:00:56]} 39. Kf2 {[%clk 0:00:51]}  h5 {[%clk 0:00:41]} 40. h4 {[%clk 0:00:50]}  Kh7 {[%clk 0:00:37]} 41. g3 {[%clk 0:00:45]}  Ra8 {[%clk 0:00:37]} 42. Qc5 {[%clk 0:00:43]}  Ra3 {[%clk 0:00:37]} 43. Qc4 {[%clk 0:00:43]}  Ra5 {[%clk 0:00:33]} 44. Qe6 {[%clk 0:00:41]}  Qd5 {[%clk 0:00:33]} 45. Qxd5 {[%clk 0:00:35]}  Rxd5 {[%clk 0:00:32]} 46. Ra2 {[%clk 0:00:24]}  Rxf5+ {[%clk 0:00:32]} 47. Ke2 {[%clk 0:00:24]}  Rb5 {[%clk 0:00:26]} 48. Kd1 {[%clk 0:00:21]}  g5 {[%clk 0:00:25]} 49. hxg5 {[%clk 0:00:21]}  fxg5 {[%clk 0:00:25]} 50. Ra8 {[%clk 0:00:19]}  h4 {[%clk 0:00:25]} 51. gxh4 {[%clk 0:00:19]}  gxh4 {[%clk 0:00:25]} 52. Re8 {[%clk 0:00:17]}  h3 {[%clk 0:00:24]} 53. Rxe4 {[%clk 0:00:17]}  Rh5 {[%clk 0:00:24]} 54. Rg4 {[%clk 0:00:12]}  h2 {[%clk 0:00:25]} 0-1


[Site "https://www.chess.com"]

[Event "Titled Tuesday Blitz July 4 Late 2023"]
[White "Ai, Evan"]
[Black "Plat, Vojtech"]
[WhiteFideId "2094770"]
[BlackFideId "325740"]
[WhiteElo "2429"]
[BlackElo "2772"]
[Result "0-1"]
[Round "1"]
[TimeControl "180+2"]
[Date "2023.07.04"]
[WhiteClock "0:00:18"]
[BlackClock "0:01:18"]
[Board "60"]

1. d4 {[%clk 0:03:00]}  d6 {[%clk 0:02:44]} 2. e4 {[%clk 0:03:00]}  Nf6 {[%clk 0:02:43]} 3. Nc3 {[%clk 0:03:00]}  e5 {[%clk 0:02:21]} 4. Nf3 {[%clk 0:02:57]}  exd4 {[%clk 0:02:19]} 5. Nxd4 {[%clk 0:02:58]}  Be7 {[%clk 0:02:19]} 6. Be2 {[%clk 0:02:55]}  O-O {[%clk 0:02:19]} 7. Be3 {[%clk 0:02:54]}  Re8 {[%clk 0:02:19]} 8. O-O {[%clk 0:02:53]}  a6 {[%clk 0:02:19]} 9. f4 {[%clk 0:02:51]}  Bf8 {[%clk 0:02:20]} 10. Bf3 {[%clk 0:02:50]}  Nbd7 {[%clk 0:02:20]} 11. Nb3 {[%clk 0:02:42]}  c6 {[%clk 0:02:19]} 12. a4 {[%clk 0:02:36]}  a5 {[%clk 0:02:16]} 13. g4 {[%clk 0:02:30]}  Nb6 {[%clk 0:02:14]} 14. g5 {[%clk 0:02:28]}  Nfd7 {[%clk 0:02:14]} 15. Kh1 {[%clk 0:02:15]}  Nc4 {[%clk 0:02:13]} 16. Qe2 {[%clk 0:02:11]}  Nxe3 {[%clk 0:02:12]} 17. Qxe3 {[%clk 0:02:12]}  Qb6 {[%clk 0:02:12]} 18. Qd2 {[%clk 0:02:03]}  Nc5 {[%clk 0:02:12]} 19. Nd4 {[%clk 0:01:57]}  Qb4 {[%clk 0:02:11]} 20. b3 {[%clk 0:01:53]}  g6 {[%clk 0:02:10]} 21. f5 {[%clk 0:01:41]}  Nd7 {[%clk 0:02:09]} 22. Rad1 {[%clk 0:01:34]}  Ne5 {[%clk 0:02:09]} 23. Bg2 {[%clk 0:01:34]}  Bd7 {[%clk 0:02:07]} 24. Nce2 {[%clk 0:01:27]}  Qxd2 {[%clk 0:02:06]} 25. Rxd2 {[%clk 0:01:28]}  Rad8 {[%clk 0:02:05]} 26. Nf4 {[%clk 0:01:24]}  Bc8 {[%clk 0:02:05]} 27. h3 {[%clk 0:01:21]}  Nd7 {[%clk 0:02:02]} 28. Re1 {[%clk 0:01:11]}  Nc5 {[%clk 0:02:02]} 29. Rde2 {[%clk 0:01:09]}  Re5 {[%clk 0:02:01]} 30. Nf3 {[%clk 0:01:03]}  Ree8 {[%clk 0:02:00]} 31. f6 {[%clk 0:01:00]}  Nd7 {[%clk 0:01:55]} 32. e5 {[%clk 0:01:00]}  dxe5 {[%clk 0:01:53]} 33. Nxe5 {[%clk 0:01:00]}  Nxe5 {[%clk 0:01:52]} 34. Rxe5 {[%clk 0:01:01]}  Rxe5 {[%clk 0:01:52]} 35. Rxe5 {[%clk 0:01:02]}  Bd6 {[%clk 0:01:52]} 36. Re4 {[%clk 0:01:03]}  Bf5 {[%clk 0:01:51]} 37. Rd4 {[%clk 0:00:59]}  Bxc2 {[%clk 0:01:51]} 38. Nd3 {[%clk 0:00:49]}  Bc7 {[%clk 0:01:26]} 39. Rxd8+ {[%clk 0:00:47]}  Bxd8 {[%clk 0:01:26]} 40. Nc5 {[%clk 0:00:46]}  b6 {[%clk 0:01:26]} 41. Nb7 {[%clk 0:00:42]}  Bc7 {[%clk 0:01:26]} 42. Bxc6 {[%clk 0:00:42]}  Bxb3 {[%clk 0:01:26]} 43. Kg2 {[%clk 0:00:41]}  h6 {[%clk 0:01:24]} 44. h4 {[%clk 0:00:40]}  hxg5 {[%clk 0:01:24]} 45. hxg5 {[%clk 0:00:41]}  Bf4 {[%clk 0:01:24]} 46. Kf3 {[%clk 0:00:27]}  Bxg5 {[%clk 0:01:24]} 47. Nd6 {[%clk 0:00:26]}  Bxf6 {[%clk 0:01:23]} 48. Nc8 {[%clk 0:00:26]}  Bd8 {[%clk 0:01:22]} 49. Nd6 {[%clk 0:00:27]}  Kf8 {[%clk 0:01:20]} 50. Nb7 {[%clk 0:00:24]}  Bc7 {[%clk 0:01:19]} 51. Ke4 {[%clk 0:00:22]}  Ke7 {[%clk 0:01:19]} 52. Kd4 {[%clk 0:00:22]}  f5 {[%clk 0:01:18]} 53. Kc3 {[%clk 0:00:18]}  Be6 {[%clk 0:01:18]} 0-1


[Site "https://www.chess.com"]

[Event "Titled Tuesday Blitz July 4 Late 2023"]
[White "Gorovets, Andrey"]
[Black "FromTexas54"]
[WhiteFideId "13504037"]
[WhiteElo "2770"]
[BlackElo "2428"]
[Result "1-0"]
[Round "1"]
[TimeControl "180+2"]
[Date "2023.07.04"]
[WhiteClock "0:01:43"]
[BlackClock "0:00:33"]
[Board "61"]

1. d4 {[%clk 0:02:58]}  Nf6 {[%clk 0:02:57]} 2. c4 {[%clk 0:02:57]}  g6 {[%clk 0:02:57]} 3. Nf3 {[%clk 0:02:57]}  Bg7 {[%clk 0:02:57]} 4. g3 {[%clk 0:02:57]}  d6 {[%clk 0:02:58]} 5. Bg2 {[%clk 0:02:58]}  O-O {[%clk 0:02:58]} 6. Nc3 {[%clk 0:02:58]}  Nbd7 {[%clk 0:02:59]} 7. O-O {[%clk 0:02:58]}  c6 {[%clk 0:02:59]} 8. e4 {[%clk 0:02:58]}  e5 {[%clk 0:03:00]} 9. h3 {[%clk 0:02:58]}  a5 {[%clk 0:03:00]} 10. Be3 {[%clk 0:02:54]}  a4 {[%clk 0:02:59]} 11. Qc2 {[%clk 0:02:53]}  exd4 {[%clk 0:02:58]} 12. Bxd4 {[%clk 0:02:47]}  Nc5 {[%clk 0:02:55]} 13. Rfd1 {[%clk 0:02:34]}  Qa5 {[%clk 0:02:54]} 14. Rab1 {[%clk 0:02:30]}  Be6 {[%clk 0:02:46]} 15. b4 {[%clk 0:02:26]}  axb3 {[%clk 0:02:47]} 16. axb3 {[%clk 0:02:26]}  Qb4 {[%clk 0:02:36]} 17. Be3 {[%clk 0:02:18]}  Ng4 {[%clk 0:02:26]} 18. Bd2 {[%clk 0:02:16]}  Ne5 {[%clk 0:01:57]} 19. Nxe5 {[%clk 0:02:11]}  Bxe5 {[%clk 0:01:52]} 20. Nb5 {[%clk 0:02:11]}  Qxd2 {[%clk 0:01:49]} 21. Rxd2 {[%clk 0:02:09]}  cxb5 {[%clk 0:01:50]} 22. cxb5 {[%clk 0:02:10]}  Ra3 {[%clk 0:01:26]} 23. b4 {[%clk 0:01:57]}  Ra2 {[%clk 0:01:22]} 24. Qd1 {[%clk 0:01:52]}  Rxd2 {[%clk 0:00:52]} 25. Qxd2 {[%clk 0:01:53]}  Na4 {[%clk 0:00:51]} 26. Rc1 {[%clk 0:01:46]}  Nb6 {[%clk 0:00:46]} 27. f4 {[%clk 0:01:44]}  Bf6 {[%clk 0:00:37]} 28. Qxd6 {[%clk 0:01:44]}  Nc4 {[%clk 0:00:33]} 29. Rxc4 {[%clk 0:01:43]} 1-0


[Site "https://www.chess.com"]

[Event "Titled Tuesday Blitz July 4 Late 2023"]
[White "Kielinkei"]
[Black "Halkias, Stelios"]
[BlackFideId "4201809"]
[WhiteElo "2427"]
[BlackElo "2766"]
[Result "0-1"]
[Round "1"]
[TimeControl "180+2"]
[Date "2023.07.04"]
[WhiteClock "0:00:00"]
[BlackClock "0:00:29"]
[Board "62"]

1. Nf3 {[%clk 0:03:00]}  Nf6 {[%clk 0:02:58]} 2. d4 {[%clk 0:02:59]}  d5 {[%clk 0:02:58]} 3. g3 {[%clk 0:02:59]}  e6 {[%clk 0:02:59]} 4. Bg2 {[%clk 0:02:59]}  Be7 {[%clk 0:02:59]} 5. O-O {[%clk 0:03:00]}  O-O {[%clk 0:02:59]} 6. b3 {[%clk 0:03:00]}  b6 {[%clk 0:02:58]} 7. Bb2 {[%clk 0:03:00]}  Bb7 {[%clk 0:02:59]} 8. c4 {[%clk 0:03:00]}  c5 {[%clk 0:02:59]} 9. cxd5 {[%clk 0:03:00]}  exd5 {[%clk 0:02:58]} 10. Nc3 {[%clk 0:02:57]}  Nc6 {[%clk 0:02:58]} 11. e3 {[%clk 0:02:50]}  Ba6 {[%clk 0:02:51]} 12. Re1 {[%clk 0:02:48]}  Nb4 {[%clk 0:02:50]} 13. Ne5 {[%clk 0:02:33]}  cxd4 {[%clk 0:02:34]} 14. exd4 {[%clk 0:02:30]}  Rc8 {[%clk 0:02:31]} 15. a3 {[%clk 0:02:24]}  Nc6 {[%clk 0:02:27]} 16. Nxc6 {[%clk 0:02:23]}  Rxc6 {[%clk 0:02:27]} 17. Qd2 {[%clk 0:02:12]}  Bb7 {[%clk 0:02:22]} 18. Rac1 {[%clk 0:02:10]}  h6 {[%clk 0:02:13]} 19. Qd3 {[%clk 0:02:03]}  Qd7 {[%clk 0:02:06]} 20. Rc2 {[%clk 0:01:51]}  Bd6 {[%clk 0:01:55]} 21. Rec1 {[%clk 0:01:22]}  Rfc8 {[%clk 0:01:47]} 22. Ne2 {[%clk 0:01:11]}  Rxc2 {[%clk 0:01:46]} 23. Rxc2 {[%clk 0:01:11]}  Ne4 {[%clk 0:01:43]} 24. Rxc8+ {[%clk 0:01:07]}  Qxc8 {[%clk 0:01:43]} 25. Nc3 {[%clk 0:01:06]}  Qe6 {[%clk 0:01:41]} 26. b4 {[%clk 0:00:49]}  f5 {[%clk 0:01:34]} 27. Bc1 {[%clk 0:00:48]}  f4 {[%clk 0:01:26]} 28. Qe2 {[%clk 0:00:28]}  Qg6 {[%clk 0:01:20]} 29. Qc2 {[%clk 0:00:20]}  fxg3 {[%clk 0:01:08]} 30. hxg3 {[%clk 0:00:19]}  Kh7 {[%clk 0:00:53]} 31. Qd3 {[%clk 0:00:16]}  h5 {[%clk 0:00:47]} 32. Nxe4 {[%clk 0:00:13]}  dxe4 {[%clk 0:00:46]} 33. Qe3 {[%clk 0:00:14]}  Bd5 {[%clk 0:00:40]} 34. Qg5 {[%clk 0:00:12]}  Qxg5 {[%clk 0:00:41]} 35. Bxg5 {[%clk 0:00:13]}  Kg6 {[%clk 0:00:41]} 36. Bd2 {[%clk 0:00:12]}  Kf7 {[%clk 0:00:41]} 37. Kf1 {[%clk 0:00:11]}  Bc4+ {[%clk 0:00:37]} 38. Ke1 {[%clk 0:00:11]}  Bd3 {[%clk 0:00:38]} 39. Bf1 {[%clk 0:00:08]}  Ke6 {[%clk 0:00:37]} 40. Bh3+ {[%clk 0:00:04]}  Kd5 {[%clk 0:00:36]} 41. Be3 {[%clk 0:00:04]}  a5 {[%clk 0:00:34]} 42. bxa5 {[%clk 0:00:04]}  bxa5 {[%clk 0:00:34]} 43. a4 {[%clk 0:00:04]}  Kc4 {[%clk 0:00:33]} 44. Kd2 {[%clk 0:00:03]}  Bb4+ {[%clk 0:00:32]} 45. Kc1 {[%clk 0:00:03]}  Bc3 {[%clk 0:00:32]} 46. d5 {[%clk 0:00:02]}  Kxd5 {[%clk 0:00:32]} 47. Bb6 {[%clk 0:00:02]}  Bd4 {[%clk 0:00:31]} 48. Bc7 {[%clk 0:00:02]}  Bxf2 {[%clk 0:00:31]} 49. Bd7 {[%clk 0:00:03]}  e3 {[%clk 0:00:30]} 50. Bb5 {[%clk 0:00:00]}  e2 {[%clk 0:00:29]} 0-1


[Site "https://www.chess.com"]

[Event "Titled Tuesday Blitz July 4 Late 2023"]
[White "Omariev, Maksim"]
[Black "Morefield, Jason"]
[WhiteFideId "4193423"]
[BlackFideId "30920825"]
[WhiteElo "2426"]
[BlackElo "2751"]
[Result "0-1"]
[Round "1"]
[TimeControl "180+2"]
[Date "2023.07.04"]
[WhiteClock "0:00:00"]
[BlackClock "0:00:29"]
[Board "64"]

1. g4 {[%clk 0:02:35]}  h5 {[%clk 0:02:58]} 2. g5 {[%clk 0:02:32]}  e5 {[%clk 0:02:57]} 3. d4 {[%clk 0:02:28]}  e4 {[%clk 0:02:55]} 4. c4 {[%clk 0:02:25]}  Bb4+ {[%clk 0:02:28]} 5. Nc3 {[%clk 0:02:17]}  b6 {[%clk 0:02:05]} 6. Bg2 {[%clk 0:02:15]}  Bb7 {[%clk 0:02:03]} 7. d5 {[%clk 0:02:12]}  Bxc3+ {[%clk 0:01:55]} 8. bxc3 {[%clk 0:02:12]}  f5 {[%clk 0:01:51]} 9. Qd4 {[%clk 0:01:56]}  Qe7 {[%clk 0:01:46]} 10. Nh3 {[%clk 0:01:29]}  Qf7 {[%clk 0:01:20]} 11. Nf4 {[%clk 0:00:47]}  Ne7 {[%clk 0:01:19]} 12. f3 {[%clk 0:00:47]}  exf3 {[%clk 0:01:11]} 13. Bxf3 {[%clk 0:00:48]}  Na6 {[%clk 0:01:04]} 14. O-O {[%clk 0:00:23]}  O-O-O {[%clk 0:01:03]} 15. a4 {[%clk 0:00:18]}  Nc5 {[%clk 0:01:01]} 16. Ra3 {[%clk 0:00:11]}  a5 {[%clk 0:00:58]} 17. h4 {[%clk 0:00:07]}  d6 {[%clk 0:00:43]} 18. Be3 {[%clk 0:00:07]}  Kb8 {[%clk 0:00:36]} 19. Bf2 {[%clk 0:00:07]}  Bc8 {[%clk 0:00:34]} 20. Rb3 {[%clk 0:00:06]}  Nxb3 {[%clk 0:00:34]} 21. Qd1 {[%clk 0:00:02]}  Nc5 {[%clk 0:00:34]} 22. Bg3 {[%clk 0:00:01]}  Qe8 {[%clk 0:00:30]} 23. Qc1 {[%clk 0:00:00]}  Ng6 {[%clk 0:00:29]} 0-1


[Site "https://www.chess.com"]

[Event "Titled Tuesday Blitz July 4 Late 2023"]
[White "Mahdavi, Reza"]
[Black "Bueno, Alfeu Junior Varela"]
[WhiteFideId "12595926"]
[BlackFideId "2108879"]
[WhiteElo "2733"]
[BlackElo "2423"]
[Result "1-0"]
[Round "1"]
[TimeControl "180+2"]
[Date "2023.07.04"]
[WhiteClock "0:02:00"]
[BlackClock "0:00:02"]
[Board "67"]

1. e4 {[%clk 0:03:00]}  e6 {[%clk 0:02:56]} 2. d4 {[%clk 0:03:00]}  d5 {[%clk 0:02:56]} 3. Nc3 {[%clk 0:03:01]}  Nf6 {[%clk 0:02:54]} 4. e5 {[%clk 0:03:01]}  Nfd7 {[%clk 0:02:54]} 5. f4 {[%clk 0:03:02]}  c5 {[%clk 0:02:55]} 6. Nf3 {[%clk 0:03:02]}  Nc6 {[%clk 0:02:56]} 7. Be3 {[%clk 0:03:03]}  cxd4 {[%clk 0:02:55]} 8. Nxd4 {[%clk 0:03:04]}  Bc5 {[%clk 0:02:56]} 9. Qd2 {[%clk 0:03:04]}  O-O {[%clk 0:02:57]} 10. O-O-O {[%clk 0:03:01]}  a6 {[%clk 0:02:57]} 11. Qf2 {[%clk 0:02:44]}  Qe7 {[%clk 0:02:57]} 12. h4 {[%clk 0:02:36]}  Nxd4 {[%clk 0:02:57]} 13. Bxd4 {[%clk 0:02:37]}  b5 {[%clk 0:02:57]} 14. Rh3 {[%clk 0:02:35]}  b4 {[%clk 0:02:55]} 15. Ne2 {[%clk 0:02:33]}  a5 {[%clk 0:02:54]} 16. h5 {[%clk 0:02:30]}  Ba6 {[%clk 0:02:54]} 17. Rg3 {[%clk 0:02:28]}  Rfc8 {[%clk 0:02:51]} 18. Kb1 {[%clk 0:02:25]}  Bxd4 {[%clk 0:02:39]} 19. Nxd4 {[%clk 0:02:25]}  Bxf1 {[%clk 0:02:39]} 20. Rxf1 {[%clk 0:02:24]}  Nc5 {[%clk 0:02:40]} 21. Qe3 {[%clk 0:02:18]}  Ne4 {[%clk 0:02:38]} 22. Rg4 {[%clk 0:02:19]}  a4 {[%clk 0:02:35]} 23. f5 {[%clk 0:02:19]}  Kh8 {[%clk 0:02:14]} 24. f6 {[%clk 0:02:13]}  gxf6 {[%clk 0:02:09]} 25. exf6 {[%clk 0:02:11]}  Qf8 {[%clk 0:01:12]} 26. Rg7 {[%clk 0:02:03]}  Nxf6 {[%clk 0:00:54]} 27. h6 {[%clk 0:02:01]}  Ne8 {[%clk 0:00:14]} 28. Rgxf7 {[%clk 0:01:59]}  Qxh6 {[%clk 0:00:02]} 29. Qxh6 {[%clk 0:02:00]} 1-0


[Site "https://www.chess.com"]

[Event "Titled Tuesday Blitz July 4 Late 2023"]
[White "Romero Ruscalleda, Josep"]
[Black "Ghazarian, Kirk"]
[WhiteFideId "2231859"]
[BlackFideId "30908604"]
[WhiteElo "2422"]
[BlackElo "2730"]
[Result "0-1"]
[Round "1"]
[TimeControl "180+2"]
[Date "2023.07.04"]
[WhiteClock "0:00:07"]
[BlackClock "0:00:19"]
[Board "68"]

1. e4 {[%clk 0:03:00]}  c5 {[%clk 0:02:59]} 2. c3 {[%clk 0:03:00]}  e5 {[%clk 0:02:56]} 3. Nf3 {[%clk 0:02:59]}  Nc6 {[%clk 0:02:56]} 4. Bc4 {[%clk 0:02:59]}  Nf6 {[%clk 0:02:56]} 5. d3 {[%clk 0:02:56]}  d5 {[%clk 0:02:55]} 6. exd5 {[%clk 0:02:54]}  Nxd5 {[%clk 0:02:56]} 7. O-O {[%clk 0:02:54]}  Be7 {[%clk 0:02:44]} 8. Re1 {[%clk 0:02:53]}  f6 {[%clk 0:02:44]} 9. d4 {[%clk 0:02:49]}  Nb6 {[%clk 0:02:33]} 10. Bb5 {[%clk 0:02:32]}  Bg4 {[%clk 0:02:25]} 11. h3 {[%clk 0:02:16]}  Bxf3 {[%clk 0:01:49]} 12. Qxf3 {[%clk 0:02:15]}  cxd4 {[%clk 0:01:50]} 13. cxd4 {[%clk 0:02:09]}  Qxd4 {[%clk 0:01:44]} 14. Nc3 {[%clk 0:01:52]}  O-O {[%clk 0:01:38]} 15. Bxc6 {[%clk 0:01:17]}  bxc6 {[%clk 0:01:37]} 16. Qxc6 {[%clk 0:01:17]}  Qc4 {[%clk 0:01:25]} 17. Qf3 {[%clk 0:01:10]}  Rac8 {[%clk 0:01:15]} 18. Be3 {[%clk 0:01:00]}  Rfd8 {[%clk 0:01:15]} 19. Rac1 {[%clk 0:00:58]}  Qe6 {[%clk 0:01:07]} 20. Bxb6 {[%clk 0:00:50]}  axb6 {[%clk 0:01:02]} 21. a3 {[%clk 0:00:42]}  Bc5 {[%clk 0:00:57]} 22. Red1 {[%clk 0:00:38]}  Bd4 {[%clk 0:00:51]} 23. Rd2 {[%clk 0:00:25]}  e4 {[%clk 0:00:46]} 24. Qe2 {[%clk 0:00:19]}  e3 {[%clk 0:00:44]} 25. Rxd4 {[%clk 0:00:15]}  Rxd4 {[%clk 0:00:38]} 26. fxe3 {[%clk 0:00:14]}  Rd7 {[%clk 0:00:31]} 27. e4 {[%clk 0:00:14]}  h6 {[%clk 0:00:26]} 28. Re1 {[%clk 0:00:14]}  Re8 {[%clk 0:00:22]} 29. Nd5 {[%clk 0:00:13]}  Rxd5 {[%clk 0:00:20]} 30. Qc4 {[%clk 0:00:07]}  Re5 {[%clk 0:00:19]} 0-1


[Site "https://www.chess.com"]